bitfinex-derivatives/quotes_SOLF0:USTF0_20250127
["timestamp","ask_amount","ask_price","bid_price","bid_amount"]
[1737989638377,0.02826736,235.76,235.72,0.02926682]
[1737989641876,26.48376878,235.76,235.59,2.163]
[1737989642077,26.45550142,235.72,235.59,2.163]
[1737989642381,26.45550142,235.72,235.49,26.45550142]
[1737989642877,26.45550142,235.68,235.46,6.0192]
[1737989643088,26.45550142,235.6,235.46,6.0192]
[1737989643379,4.245,235.58,235.48,4.2468]
[1737989643680,26.45550142,235.68,235.46,6.0192]
[1737989643980,4.2434,235.67,235.57,4.2451]
[1737989644179,26.45550142,235.73,235.49,26.45550142]
[1737989644380,0.02916895,235.64,235.6,0.03083483]
[1737989644679,26.45550142,235.61,235.46,6.0192]
[1737989645072,4.2447,235.6,235.51,4.2462]
[1737989645478,4.245,235.58,235.49,4.2466]
[1737989645675,26.45550142,235.65,235.46,32.47470142]
[1737989645875,0.02691888,235.56,235.51,0.0288599]
[1737989646574,4.2459,235.53,235.51,0.0288599]
[1737989646881,0.02691888,235.56,235.51,0.0288599]
[1737989647681,4.246,235.53,235.51,0.0288599]
[1737989647881,26.45550142,235.53,235.36,2.2923]
[1737989648177,26.45550142,235.53,235.17,26.45550142]
[1737989648178,26.45550142,235.49,235.26,3.9028]
[1737989648379,26.45550142,235.44,235.26,3.9028]
[1737989648975,0.02906376,235.37,235.33,0.02910667]
[1737989649375,4.249,235.36,235.33,0.02910667]
[1737989649580,0.02906376,235.37,235.33,0.02910667]
[1737989650579,0.02906376,235.37,235.33,4.27850667]
[1737989650775,0.02906376,235.37,235.33,0.02910667]
[1737989653482,0.02906376,235.37,235.35,4.249]
[1737989653683,5.81714201,235.51,235.35,26.45550142]
[1737989653988,5.81714201,235.51,235.43,26.45550142]
[1737989654184,2.08534201,235.51,235.49,4.2466]
[1737989655388,7.53061024,235.52,235.51,4.2463]
[1737989655886,46.53713612,235.53,235.48,0.02860261]
[1737989655887,4.2446,235.61,235.48,0.02860261]
[1737989656078,7.97242604,235.68,235.48,0.02860261]
[1737989656285,26.45550142,235.61,235.48,0.02860261]
[1737989656480,26.45550142,235.61,235.39,26.45550142]
[1737989656883,26.45550142,235.57,235.36,1.9954]
[1737989657081,0.0306538,235.52,235.48,0.02692944]
[1737989657290,4.2466,235.49,235.48,0.02692944]
[1737989657486,0.0306538,235.52,235.48,0.02692944]
[1737989658286,4.247,235.47,235.38,4.2484]
[1737989658484,0.0306538,235.52,235.36,1.9954]
[1737989658784,4.4613,235.53,235.44,4.2475]
[1737989658982,26.45550142,235.63,235.4,26.45550142]
[1737989659183,4.4613,235.66,235.45,26.45550142]
[1737989659383,2.4106,235.66,235.5,26.45550142]
[1737989659586,0.03112462,235.58,235.54,26.45550142]
[1737989659987,0.03112462,235.58,235.57,4.2452]
[1737989660284,46.53713612,235.64,235.54,26.45550142]
[1737989660689,46.53713612,235.64,235.55,2.039]
[1737989661193,43.42713612,235.64,235.62,4.2442]
[1737989661696,1.9458,235.8,235.61,0.02842262]
[1737989661892,1.9458,235.8,235.62,26.45550142]
[1737989662089,88.38960091,235.84,235.66,26.45550142]
[1737989662286,88.38960091,235.84,235.71,26.45550142]
[1737989662689,88.38960091,235.84,235.79,4.2412]
[1737989662994,0.02725152,235.8,235.75,0.02795429]
[1737989663888,0.02725152,235.8,235.78,4.2413]
[1737989664097,2.4572,235.94,235.75,26.48345571]
[1737989664293,4.2405,235.83,235.75,0.02795429]
[1737989664589,4.2405,235.83,235.72,4.2424]
[1737989664590,2.4572,235.94,235.67,101.18730142]
[1737989664794,3.8971,235.93,235.67,101.18730142]
[1737989665399,0.02970836,235.82,235.78,0.03163081]
[1737989665693,3.8971,235.93,235.8,4.241]
[1737989666099,0.03097437,235.82,235.8,4.241]
[1737989666497,1.9458,235.93,235.8,4.2409]
[1737989666700,7.535e-05,235.83,235.79,0.02885972]
[1737989666997,2.4572,235.94,235.8,4.2409]
[1737989667194,2.4572,235.94,235.79,26.45550142]
[1737989667400,2.4866,236.02,235.79,26.45550142]
[1737989667794,4.238,235.97,235.8,2.2613]
[1737989668100,0.03168499,235.93,235.88,0.02923134]
[1737989670699,4.2393,235.9,235.88,0.02923134]
[1737989671003,0.03168499,235.93,235.88,0.02923134]
[1737989671607,0.03168499,235.93,235.88,4.26883134]
[1737989671907,0.03168499,235.93,235.81,1.9981]
[1737989672303,0.03168499,235.93,235.85,4.24]
[1737989672507,0.03168499,235.93,235.81,1.9981]
[1737989672905,4.2395,235.89,235.81,1.9981]
[1737989673106,0.03168499,235.93,235.85,0.0287461]
[1737989673308,26.45550142,235.95,235.85,0.0287461]
[1737989673508,4.24,235.86,235.85,0.0287461]
[1737989674409,0.03199789,235.91,235.85,0.0287461]
[1737989675713,0.03199789,235.91,235.88,4.2396]
[1737989676215,0.03199789,235.91,235.85,0.0287461]
[1737989676815,4.2393,235.9,235.85,0.0287461]
[1737989677311,0.03199789,235.91,235.85,4.2687461]
[1737989677818,0.03199789,235.91,235.86,4.2398]
[1737989678112,2.4866,236.02,235.87,26.45550142]
[1737989678318,88.38960091,236.13,235.96,26.45550142]
[1737989678514,4.2354,236.12,236.04,4.2367]
[1737989678715,88.38960091,236.13,235.96,26.45550142]
[1737989679215,0.02946433,236.07,236.02,0.0292866]
[1737989680712,4.2367,236.04,236.02,8.66e-05]
[1737989681516,0.02946433,236.07,236.02,8.66e-05]
[1737989682913,0.02946433,236.07,236.03,4.2368]
[1737989683112,2.2957,236.18,236.02,8.66e-05]
[1737989683612,1.8906,236.21,236.04,26.45550142]
[1737989684218,1.8906,236.21,236.01,2.0531]
[1737989684418,0.03025366,236.15,236.1,4.85e-05]
[1737989684821,4.2353,236.12,236.1,4.85e-05]
[1737989687824,4.2373,236.02,235.94,2.048]
[1737989688022,26.45550142,236.11,235.94,2.048]
[1737989688524,4.2374,236.01,235.91,4.239]
[1737989689021,0.02801994,235.99,235.95,0.03062602]
[1737989689425,4.3536,236.14,235.92,26.45550142]
[1737989689624,0.02877724,235.99,235.95,0.02921697]
[1737989689927,26.45550142,236.11,235.9,2.0317]
[1737989690120,4.238,235.97,235.9,2.0317]
[1737989690315,0.02896088,235.99,235.95,0.02827149]
[1737989690515,2.0829,236.06,235.95,0.02827149]
[1737989690718,17.25599287,236.23,236.05,26.45550142]
[1737989690926,17.25599287,236.23,236.11,26.45550142]
[1737989691426,0.02737275,236.19,236.15,0.02985169]
[1737989692329,17.25599287,236.23,236.17,4.2343]
[1737989692628,17.25599287,236.23,236.15,0.02985169]
[1737989693626,0.0290794,236.21,236.18,26.45550142]
[1737989693831,14.08709287,236.23,236.19,2.0336]
[1737989694127,14.08709287,236.39,236.19,2.0336]
[1737989694326,4.2318,236.32,236.2,4.2338]
[1737989694629,69.76264535,236.42,236.21,26.45550142]
[1737989694821,118.80237559,236.44,236.28,26.45550142]
[1737989695127,0.03002875,236.34,236.29,0.02734235]
[1737989695527,4.2303,236.4,236.28,30.68780142]
[1737989695727,0.03093945,236.34,236.29,0.03024477]
[1737989697430,4.2318,236.32,236.29,0.03024477]
[1737989697830,0.03093945,236.34,236.29,0.03024477]
[1737989698032,4.2319,236.31,236.29,0.03024477]
[1737989698331,0.03093945,236.34,236.29,0.03024477]
[1737989698832,0.03093945,236.34,236.19,2.0336]
[1737989699034,46.40019063,236.43,236.22,26.45550142]
[1737989699836,4.232,236.31,236.22,26.45550142]
[1737989700034,0.02756819,236.35,236.3,0.02921992]
[1737989700335,46.40019063,236.42,236.3,0.02902591]
[1737989700530,0.02897967,236.35,236.3,0.02902591]
[1737989701336,0.02897967,236.35,236.32,26.45550142]
[1737989701534,4.2298,236.43,236.34,4.2313]
[1737989701728,64.89550564,236.46,236.32,26.45550142]
[1737989702535,64.89550564,236.46,236.28,26.45550142]
[1737989702831,0.03121931,236.41,236.37,0.03036728]
[1737989703337,4.2306,236.38,236.37,0.03036728]
[1737989703836,0.03121931,236.41,236.37,0.03036728]
[1737989704033,4.2305,236.39,236.37,0.03036728]
[1737989704237,0.03121931,236.41,236.37,0.03036728]
[1737989704630,64.89550564,236.54,236.37,26.4858687]
[1737989704837,64.89550564,236.54,236.37,26.45550142]
[1737989705337,4.2289,236.48,236.4,4.2302]
[1737989705537,64.89550564,236.54,236.41,26.45550142]
[1737989705735,4.2297,236.43,236.42,0.0298218]
[1737989706438,64.89550564,236.54,236.39,26.45550142]
[1737989706833,64.89550564,236.54,236.4,4.2302]
[1737989707029,64.89550564,236.54,236.43,26.45550142]
[1737989707435,64.89550564,236.54,236.48,30.68430142]
[1737989707636,5.181e-05,236.51,236.46,0.02771721]
[1737989707934,46.40019063,236.58,236.56,4.2272]
[1737989708139,46.40019063,236.58,236.55,26.45550142]
[1737989708532,88.09560096,236.6,236.55,26.45550142]
[1737989708840,144.01404811,236.62,236.56,1.9942]
[1737989709140,131.35124674,236.62,236.6,26.45550142]
[1737989709332,124.66874674,236.62,236.6,26.45550142]
[1737989709737,105.42804674,236.62,236.61,4.2265]
[1737989709935,80.08252749,236.62,236.61,4.2265]
[1737989710136,58.4232952,236.66,236.61,3.98]
[1737989710338,51.1610952,236.66,236.65,26.45550142]
[1737989710838,144.57460998,236.79,236.65,26.45550142]
[1737989711036,144.57460998,236.79,236.74,26.45550142]
[1737989711541,231.31937597,236.86,236.78,26.45550142]
[1737989711735,231.31937597,236.86,236.78,30.43550142]
[1737989711937,4.416,236.96,236.78,30.43550142]
[1737989712238,4.416,236.96,236.8,0.02687668]
[1737989712633,4.2211,236.92,236.86,0.03082676]
[1737989712830,5.276,236.96,236.86,0.03082676]
[1737989713030,26.45550142,236.93,236.86,2.676e-05]
[1737989713241,4.2218,236.88,236.86,2.676e-05]
[1737989713429,3.98,237.17,236.86,2.676e-05]
[1737989713634,26.45550142,237.0,236.86,2.676e-05]
[1737989713836,26.45550142,237.0,236.78,26.45550142]
[1737989714238,0.0293386,236.95,236.91,0.03136808]
[1737989714440,4.2207,236.94,236.91,0.03136808]
[1737989714636,26.45550142,236.95,236.75,76.09575039]
[1737989714837,26.45550142,236.91,236.75,76.09575039]
[1737989715233,26.45550142,236.95,236.75,76.09575039]
[1737989715539,4.2238,236.76,236.75,76.09575039]
[1737989715736,4.2238,236.76,236.75,61.38365039]
[1737989715940,4.2238,236.76,236.75,46.30415039]
[1737989716143,0.02687263,236.78,236.75,46.30415039]
[1737989716342,4.2238,236.77,236.75,46.30415039]
[1737989716738,0.03152963,236.78,236.75,46.30415039]
[1737989717045,26.45550142,236.88,236.75,46.30415039]
[1737989717341,0.02722518,236.79,236.75,46.30415039]
[1737989717640,4.2238,236.77,236.75,46.30415039]
[1737989717840,0.02961328,236.79,236.75,46.33239343]
[1737989718039,4.2238,236.77,236.75,46.33239343]
[1737989718240,4.2238,236.77,236.75,39.47619343]
[1737989718441,4.2266,236.61,236.5,30.68390142]
[1737989718740,26.45550142,236.73,236.51,2.0994]
[1737989718937,4.2277,236.55,236.42,30.43550142]
[1737989719141,26.45550142,236.65,236.42,30.43550142]
[1737989719437,4.2233,236.8,236.63,26.45550142]
[1737989719644,26.45550142,236.91,236.68,26.45550142]
[1737989720341,26.45550142,236.96,236.73,26.45550142]
[1737989721137,0.03194375,236.87,236.82,0.02737744]
[1737989722149,0.03194375,236.87,236.68,26.45550142]
[1737989722446,26.45550142,236.91,236.68,26.45550142]
[1737989722947,26.45550142,236.86,236.61,2.0994]
[1737989723149,26.45550142,236.86,236.65,26.45550142]
[1737989723444,0.03016043,236.76,236.71,0.02805493]
[1737989723841,4.2225,236.84,236.7,4.2248]
[1737989724148,0.02856118,236.76,236.71,0.03096185]
[1737989724341,4.3212,236.98,236.71,0.03096185]
[1737989724545,26.45550142,236.94,236.7,26.45550142]
[1737989725247,4.3212,236.98,236.75,26.45550142]
[1737989725446,4.2209,236.93,236.81,4.2228]
[1737989725647,0.02821666,236.89,236.84,0.02869254]
[1737989727053,4.24981666,236.89,236.84,0.02869254]
[1737989727251,0.02821666,236.89,236.84,0.02869254]
[1737989727550,4.2222,236.85,236.84,9.254e-05]
[1737989727948,30.67770142,236.85,236.84,9.254e-05]
[1737989728151,4.2219,236.87,236.84,9.254e-05]
[1737989728342,0.02821666,236.89,236.84,9.254e-05]
[1737989728742,4.2221,236.86,236.84,9.254e-05]
[1737989728940,0.02821666,236.89,236.84,9.254e-05]
[1737989729949,4.2221,236.86,236.84,9.254e-05]
[1737989730959,0.02821666,236.89,236.84,9.254e-05]
[1737989731145,0.02821666,236.89,236.75,1.9372]
[1737989731345,0.02821666,236.89,236.69,26.45550142]
[1737989731550,1.9051,236.97,236.69,26.45550142]
[1737989731551,26.45550142,236.91,236.69,26.45550142]
[1737989732050,26.45550142,236.86,236.64,28.39270142]
[1737989732450,0.03156644,236.77,236.73,0.03140143]
[1737989732852,26.45550142,236.91,236.69,26.45550142]
[1737989733045,0.03015643,236.77,236.73,0.02953364]
[1737989733245,26.45550142,236.91,236.73,0.02953364]
[1737989733445,0.02773518,236.82,236.73,4.2243]
[1737989733653,0.02773518,236.82,236.69,26.45550142]
[1737989733854,0.02773518,236.82,236.75,0.03056631]
[1737989734352,4.25063518,236.82,236.75,0.03056631]
[1737989734552,0.02773518,236.82,236.75,0.03056631]
[1737989734753,4.2237,236.77,236.75,0.03056631]
[1737989734953,0.02773518,236.82,236.75,0.03056631]
[1737989735249,4.2231,236.8,236.75,0.03056631]
[1737989735444,0.02773518,236.82,236.75,0.03056631]
[1737989735950,0.02773518,236.82,236.75,4.25456631]
[1737989737045,0.02773518,236.82,236.75,0.03056631]
[1737989737248,0.02773518,236.82,236.76,4.2238]
[1737989737553,0.02773518,236.82,236.75,0.03056631]
[1737989738552,4.2253,236.68,236.6,26.45550142]
[1737989738849,26.45550142,236.65,236.41,26.45550142]
[1737989739050,4.2269,236.59,236.46,26.45550142]
[1737989739252,26.45550142,236.81,236.56,26.45550142]
[1737989739649,26.45550142,236.81,236.61,26.45550142]
[1737989739857,4.5006,236.85,236.71,26.45550142]
[1737989740350,5.63389938,236.95,236.71,26.45550142]
[1737989740653,26.45550142,236.91,236.71,26.45550142]
[1737989740853,26.45550142,236.91,236.74,4.2241]
[1737989741052,26.45550142,236.91,236.71,26.45550142]
[1737989741355,0.02993996,236.83,236.79,0.0293457]
[1737989746052,4.223,236.81,236.79,0.0293457]
[1737989746252,0.02993996,236.83,236.79,0.0293457]
[1737989746552,0.02993996,236.83,236.81,4.2229]
[1737989746851,45.70251395,236.93,236.8,26.45550142]
[1737989747050,45.70251395,236.93,236.79,0.0293457]
[1737989747455,49.92341395,236.93,236.83,4.2225]
[1737989747655,2.4195,236.97,236.73,30.35550142]
[1737989747854,26.45550142,236.94,236.73,26.45550142]
[1737989748156,0.03095089,236.87,236.83,0.0309511]
[1737989748559,0.03095089,236.87,236.84,4.2223]
[1737989748858,0.03095089,236.87,236.83,0.0309511]
[1737989749555,0.03095089,236.87,236.85,4.2221]
[1737989750252,26.45550142,237.04,236.83,26.48645252]
[1737989750554,17.01940802,237.07,236.83,26.45550142]
[1737989750754,28.88540142,237.09,236.83,26.45550142]
[1737989750949,28.88540142,237.09,236.89,4.2214]
[1737989751158,28.88540142,237.09,236.83,26.45550142]
[1737989751454,0.0297874,236.98,236.94,0.02833893]
[1737989751859,0.0297874,236.98,236.95,4.2204]
[1737989752158,0.0297874,236.98,236.94,0.02833893]
[1737989753659,4.2498874,236.98,236.94,0.02833893]
[1737989753860,0.0297874,236.98,236.94,0.02833893]
[1737989756660,0.0297874,236.98,236.92,4.20695502]
[1737989757157,0.0297874,236.98,236.83,26.45550142]
[1737989757359,2.4299,237.09,236.83,26.45550142]
[1737989757861,0.02958771,236.98,236.94,0.0271565]
[1737989758159,4.2212,236.91,236.83,4.2226]
[1737989758355,26.45550142,236.98,236.79,4.2115]
[1737989758561,26.45550142,237.03,236.79,4.2115]
[1737989758957,26.45550142,237.03,236.83,26.45550142]
[1737989759153,0.02692412,236.93,236.89,0.02827151]
[1737989759359,4.2213,236.9,236.89,0.02827151]
[1737989759565,26.45550142,236.98,236.79,2.0111]
[1737989759862,26.45550142,236.88,236.66,2.1625]
[1737989760056,26.45550142,236.88,236.66,4.3561]
[1737989760455,4.2241,236.75,236.66,4.3561]
[1737989760659,26.45550142,236.88,236.66,4.3561]
[1737989761561,4.29,236.97,236.75,26.45550142]
[1737989761762,4.29,236.97,236.75,26.48658813]
[1737989761962,4.29,236.97,236.79,4.2232]
[1737989761963,4.2212,236.91,236.79,4.2232]
[1737989762163,4.29,236.97,236.75,26.45550142]
[1737989762565,4.2214,236.9,236.79,4.2233]
[1737989762761,4.29,236.97,236.75,26.45550142]
[1737989762961,4.2234,236.79,236.67,4.2254]
[1737989763162,0.02918999,236.87,236.66,2.1936]
[1737989763163,26.45550142,236.84,236.66,2.1936]
[1737989763362,2.4627,236.78,236.66,2.1936]
[1737989763562,2.4627,236.78,236.58,2.0429]
[1737989763760,2.4627,236.78,236.59,2.1234]
[1737989764268,0.02701689,236.71,236.67,0.03183449]
[1737989764570,0.02701689,236.71,236.67,4.25713449]
[1737989764868,0.02701689,236.71,236.67,0.03183449]
[1737989766267,0.02701689,236.71,236.69,4.225]
[1737989766460,0.02701689,236.71,236.67,0.03183449]
[1737989767066,4.2252,236.69,236.67,0.03183449]
[1737989767259,0.02701689,236.71,236.43,3.9]
[1737989767463,4.2257,236.66,236.55,4.2275]
[1737989767660,26.45550142,236.72,236.52,28.52680142]
[1737989767871,26.45550142,236.63,236.43,26.45550142]
[1737989768168,2.4948,236.62,236.44,0.84588056]
[1737989768566,0.02768844,236.55,236.51,0.03083386]
[1737989770064,4.228,236.53,236.51,0.03083386]
[1737989770464,4.228,236.53,236.35,2.4802]
[1737989770669,2.1197,236.52,236.29,30.63500142]
[1737989770961,26.45550142,236.48,236.3,0.84638171]
[1737989771269,2.1197,236.52,236.3,0.84638171]
[1737989771270,26.45550142,236.43,236.3,0.84638171]
[1737989771568,4.2311,236.36,236.3,0.84638171]
[1737989771766,0.03249086,236.39,236.34,0.02915121]
[1737989773472,26.45550142,236.38,236.34,0.02915121]
[1737989773675,26.45550142,236.35,236.05,160.04628017]
[1737989773872,30.68850142,236.25,236.0,26.45550142]
[1737989774068,1.9963,236.24,236.01,0.71143517]
[1737989774271,26.45550142,236.2,236.01,0.71143517]
[1737989774471,26.45550142,236.2,236.06,4.2362]
[1737989774672,1.9963,236.24,236.0,26.45550142]
[1737989774869,0.02834994,236.15,236.11,0.0286822]
[1737989775273,26.45550142,236.2,235.95,26.45550142]
[1737989775477,0.02914369,236.15,236.11,0.02709957]
[1737989775776,26.45550142,236.25,236.04,26.45550142]
[1737989775973,26.45550142,236.31,236.11,0.03220168]
[1737989776177,4.199,236.35,236.14,26.45550142]
[1737989776376,26.45550142,236.41,236.19,26.45550142]
[1737989776577,72.48,236.55,236.24,26.45550142]
[1737989776578,4.2298,236.43,236.24,26.45550142]
[1737989776778,26.45550142,236.52,236.31,26.45550142]
[1737989777072,4.2293,236.46,236.34,4.2312]
[1737989777274,0.03072928,236.44,236.39,0.02791145]
[1737989777679,4.26042928,236.44,236.39,0.02791145]
[1737989777881,0.03072928,236.44,236.39,0.02791145]
[1737989781574,0.03072928,236.44,236.32,26.45550142]
[1737989782083,26.45550142,236.49,236.27,26.45550142]
[1737989782380,26.45550142,236.49,236.26,4.6725]
[1737989782775,26.45550142,236.44,236.26,4.6725]
[1737989783084,0.0279155,236.4,236.35,0.03131346]
[1737989783676,26.45550142,236.39,236.15,4.2811]
[1737989783883,26.45550142,236.35,236.15,4.2811]
[1737989784684,4.2321,236.3,236.19,4.2339]
[1737989784882,26.45550142,236.35,236.15,4.2811]
[1737989785178,4.2331,236.24,236.23,8.434e-05]
[1737989785380,30.68860142,236.24,236.23,8.434e-05]
[1737989785584,26.45550142,236.24,235.93,26.45550142]
[1737989785881,4.5058,236.23,236.03,26.45550142]
[1737989786284,2.4962,236.23,236.0,26.45550142]
[1737989786584,2.0096,236.33,236.1,26.45550142]
[1737989786784,26.45550142,236.4,236.15,26.45550142]
[1737989786985,3.94,236.58,236.2,26.45550142]
[1737989786986,4.5058,236.46,236.2,26.45550142]
[1737989787483,4.5058,236.46,236.31,0.02787788]
[1737989787882,4.5058,236.46,236.2,26.45550142]
[1737989788382,0.02839831,236.35,236.2,26.45550142]
[1737989788585,0.02839831,236.35,236.31,0.02817946]
[1737989788784,4.2302,236.41,236.29,4.2321]
[1737989788982,2.0571,236.45,236.25,26.45550142]
[1737989789177,4.5058,236.46,236.31,0.03234949]
[1737989789377,2.4962,236.46,236.35,4.2311]
[1737989789684,2.4962,236.46,236.3,26.45550142]
[1737989789884,2.4962,236.46,236.35,4.2311]
[1737989790085,2.4962,236.46,236.3,26.45550142]
[1737989790281,26.45550142,236.52,236.3,26.45550142]
[1737989790487,4.228,236.53,236.42,4.2299]
[1737989790687,26.45550142,236.57,236.36,0.02669905]
[1737989790886,0.02950322,236.43,236.35,26.45550142]
[1737989791085,4.228,236.53,236.35,26.45550142]
[1737989791281,26.45550142,236.57,236.44,0.03209821]
[1737989791478,26.45550142,236.57,236.35,26.45550142]
[1737989791686,0.02896387,236.53,236.48,0.02707288]
[1737989793289,0.02896387,236.53,236.51,4.2282]
[1737989793684,0.02896387,236.53,236.48,0.02707288]
[1737989795186,6.6683,236.67,236.48,0.02707288]
[1737989795491,4.2262,236.63,236.48,0.02707288]
[1737989795689,26.45550142,236.62,236.41,4.0782]
[1737989796188,26.45550142,236.57,236.41,4.0782]
[1737989796689,0.02969187,236.54,236.49,0.03252813]
[1737989796989,4.25749187,236.54,236.49,0.03252813]
[1737989797288,0.02969187,236.54,236.49,0.03252813]
[1737989798184,4.228,236.53,236.49,0.03252813]
[1737989798391,0.02969187,236.54,236.49,0.03252813]
[1737989798892,26.45550142,236.52,236.22,3.88]
[1737989799092,26.45550142,236.47,236.23,2.0476]
[1737989799388,2.0541,236.51,236.33,26.45550142]
[1737989799593,2.0541,236.51,236.28,26.45550142]
[1737989799792,4.2291,236.47,236.28,26.45550142]
[1737989800095,0.03095757,236.42,236.37,0.03043289]
[1737989800392,0.03095757,236.42,236.23,2.0476]
[1737989800788,4.2299,236.42,236.32,4.2316]
[1737989801093,26.45550142,236.47,236.23,2.0476]
[1737989801394,4.2297,236.43,236.3,4.232]
[1737989801690,26.45550142,236.47,236.23,28.50310142]
[1737989801691,0.03062025,236.37,236.33,0.03131078]
[1737989801996,0.03062025,236.37,236.35,4.2311]
[1737989802193,0.03062025,236.37,236.33,0.03131078]
[1737989802991,0.03062025,236.37,236.35,4.231]
[1737989803193,43.59084893,236.6,236.33,0.03131078]
[1737989803393,2.0989,236.59,236.33,0.03131078]
[1737989803591,2.0989,236.59,236.32,26.45550142]
[1737989803999,2.5166,236.58,236.32,26.45550142]
[1737989804188,2.5166,236.58,236.23,32.38310142]
[1737989804189,4.2282,236.52,236.44,4.2294]
[1737989804393,0.02968698,236.47,236.44,4.2294]
[1737989804597,0.02968698,236.47,236.43,0.02875893]
[1737989804799,4.2287,236.49,236.42,4.2297]
[1737989804995,0.03023033,236.47,236.43,0.02792204]
[1737989806093,4.25933033,236.47,236.43,0.02792204]
[1737989806293,0.03023033,236.47,236.43,0.02792204]
[1737989807599,0.03023033,236.47,236.45,4.2292]
[1737989808299,0.03023033,236.47,236.43,0.02792204]
[1737989808300,17.13534751,236.69,236.43,0.02792204]
[1737989808500,2.5299,236.68,236.47,26.45550142]
[1737989809304,2.5299,236.68,236.52,4.2281]
[1737989809492,0.03007189,236.6,236.55,0.03008453]
[1737989809896,4.2272,236.57,236.55,0.03008453]
[1737989810099,0.03007189,236.6,236.55,0.03008453]
[1737989810502,26.45550142,236.57,236.39,2.1664]
[1737989810799,26.45550142,236.57,236.38,2.1328]
[1737989811003,26.45550142,236.52,236.38,2.1328]
[1737989811201,26.45550142,236.52,236.34,4.2312]
[1737989811498,4.0943,236.56,236.3,2.195]
[1737989811704,0.03065365,236.45,236.41,0.03256044]
[1737989812098,4.0943,236.56,236.3,2.195]
[1737989812403,0.03234598,236.45,236.41,0.03204892]
[1737989812796,4.0943,236.56,236.34,26.45550142]
[1737989812996,26.45550142,236.65,236.41,0.02739499]
[1737989813200,62.77447186,236.74,236.44,26.45550142]
[1737989813201,22.95417683,236.66,236.44,26.45550142]
[1737989813402,22.95417683,236.66,236.45,2.0743]
[1737989813902,22.95417683,236.66,236.52,4.2281]
[1737989814101,4.2265,236.61,236.45,2.0743]
[1737989814304,0.03187082,236.58,236.53,0.02835431]
[1737989815509,4.25897082,236.58,236.53,0.02835431]
[1737989816007,0.03187082,236.58,236.53,0.02835431]
[1737989816509,0.03187082,236.58,236.36,26.45550142]
[1737989816705,0.03187082,236.58,236.41,26.45550142]
[1737989816901,2.6514,236.69,236.46,26.45550142]
[1737989817103,6.8767,236.69,236.6,4.2266]
[1737989817307,2.6514,236.69,236.52,26.45550142]
[1737989817511,2.6514,236.69,236.53,2.0625]
[1737989817710,6.8765,236.69,236.61,4.2265]
[1737989817909,0.03104501,236.63,236.61,4.2265]
[1737989818507,0.03104501,236.63,236.58,0.02691461]
[1737989818908,0.03104501,236.63,236.53,2.0625]
[1737989819209,0.03104501,236.63,236.62,4.2263]
[1737989820114,0.03104501,236.63,236.6,0.02915417]
[1737989820610,1.68244,236.7,236.6,0.02915417]
[1737989820815,26.45550142,236.91,236.67,26.45550142]
[1737989821311,26.45550142,236.91,236.73,4.2243]
[1737989821512,26.45550142,236.86,236.61,4.5285]
[1737989821712,4.3074,236.92,236.64,4.2258]
[1737989821713,26.45550142,236.81,236.64,4.2258]
[1737989821909,2.1381,236.8,236.61,4.5285]
[1737989822114,2.1381,236.8,236.61,2.0064]
[1737989822310,26.45550142,236.76,236.7,0.03166683]
[1737989822517,0.03161226,236.73,236.7,0.03166683]
[1737989824013,26.45550142,236.91,236.7,26.48716825]
[1737989824415,2.6396,236.96,236.7,26.45550142]
[1737989825020,4.2212,236.91,236.83,4.2226]
[1737989825319,0.03023323,236.85,236.83,4.2226]
[1737989825618,2.6396,236.96,236.83,4.2226]
[1737989825811,2.6396,236.96,236.7,26.45550142]
[1737989826016,2.6396,236.96,236.82,0.03030055]
[1737989826017,0.02966587,236.86,236.82,0.03030055]
[1737989826210,26.45550142,236.85,236.66,2.1911]
[1737989826415,4.1193,236.84,236.61,28.46190142]
[1737989826813,1.9941,236.84,236.66,26.45550142]
[1737989827119,26.45550142,236.9,236.71,26.45550142]
[1737989827418,0.02784644,236.75,236.74,4.2242]
[1737989827618,26.45550142,236.9,236.7,0.02683329]
[1737989827819,26.45550142,236.95,236.72,26.45550142]
[1737989828620,4.2217,236.88,236.81,4.2229]
[1737989828820,0.02961722,236.86,236.81,0.03178575]
[1737989830223,0.02961722,236.86,236.84,4.2224]
[1737989830523,26.45550142,237.12,236.81,26.48728717]
[1737989830718,4.258,237.08,236.81,26.48728717]
[1737989830915,4.258,237.08,236.94,4.2205]
[1737989831116,4.258,237.08,236.81,26.45550142]
[1737989831315,4.2193,237.02,236.94,4.2206]
[1737989831517,2.417,237.07,236.81,26.45550142]
[1737989831712,0.02848066,237.0,236.96,0.02757078]
[1737989832420,4.2198,236.99,236.96,0.02757078]